bitfinex-derivatives/quotes_SOLF0:USTF0_20250731
["timestamp","ask_amount","ask_price","bid_price","bid_amount"]
[1753973594916,5.6701,176.38,176.33,5.6714]
[1753973595111,105.96,176.42,176.34,3.27]
[1753973595316,105.96,176.42,176.36,3.27]
[1753973595714,111.6289,176.42,176.37,5.6703]
[1753973595916,6.60923372,176.47,176.38,3.27]
[1753973596220,112.56923372,176.47,176.38,3.27]
[1753973596918,5.6683,176.44,176.38,3.27]
[1753973597116,105.96,176.47,176.4,3.27]
[1753973597509,5.6678,176.45,176.41,3.27]
[1753973597912,5.6683,176.44,176.41,3.27]
[1753973598315,5.6683,176.44,176.43,3.27]
[1753973598910,5.6678,176.45,176.41,3.27]
[1753973599316,111.6272,176.47,176.41,3.27]
[1753973599511,111.6272,176.47,176.41,6.60923372]
[1753973599716,111.6272,176.47,176.42,3.27]
[1753973600120,5.6675,176.46,176.42,3.27]
[1753973600519,105.96,176.47,176.42,3.27]
[1753973600724,111.6272,176.47,176.42,3.27]
[1753973600924,105.96,176.47,176.42,3.27]
[1753973601525,113.53581005,176.51,176.42,3.27]
[1753973601720,5.6683,176.44,176.42,3.27]
[1753973601925,6.60923372,176.45,176.36,3.27]
[1753973602326,112.54923372,176.45,176.36,3.27]
[1753973602924,5.6682,176.44,176.38,5.6698]
[1753973603132,112.54923372,176.45,176.39,3.27]
[1753973603630,5.6682,176.44,176.39,3.27]
[1753973604026,105.94,176.45,176.39,3.27]
[1753973604224,105.94,176.48,176.4,3.27]
[1753973604830,5.6676,176.46,176.4,5.6693]
[1753973605130,105.94,176.48,176.41,9.87923372]
[1753973605334,105.94,176.48,176.42,3.27]
[1753973605530,111.6069,176.48,176.42,8.9385]
[1753973605731,111.6069,176.48,176.43,3.27]
[1753973606031,5.6671,176.47,176.43,3.27]
[1753973606528,105.94,176.48,176.43,3.27]
[1753973606922,5.6672,176.47,176.43,3.27]
[1753973607129,105.94,176.48,176.41,6.60923372]
[1753973607328,105.94,176.48,176.45,3.27]
[1753973607731,5.6671,176.47,176.46,3.27]
[1753973608329,105.94,176.48,176.42,3.1]
[1753973608534,6.60923372,176.45,176.38,3.1]
[1753973608930,5.6686,176.43,176.38,3.1]
[1753973609130,6.60923372,176.45,176.38,3.1]
[1753973609438,5.6688,176.42,176.38,3.1]
[1753973609637,6.60923372,176.45,176.38,3.1]
[1753973609932,5.6683,176.44,176.4,3.1]
[1753973610137,6.60923372,176.47,176.4,3.1]
[1753973610434,105.94,176.48,176.4,3.1]
[1753973610835,105.94,176.48,176.39,6.60923372]
[1753973611032,5.6676,176.46,176.4,3.1]
[1753973611234,105.94,176.48,176.4,3.1]
[1753973611836,105.94,176.48,176.4,8.7693]
[1753973612038,105.94,176.48,176.4,3.1]
[1753973612334,6.60923372,176.47,176.4,3.1]
[1753973612834,6.60923372,176.47,176.38,3.1]
[1753973613035,6.60923372,176.47,176.39,3.1]
[1753973613237,5.6687,176.42,176.39,3.1]
[1753973613639,6.60923372,176.45,176.39,3.1]
[1753973613836,6.60923372,176.43,176.4,3.1]
[1753973614431,5.669,176.41,176.4,3.1]
[1753973614634,5.669,176.41,176.33,148.27025847]
[1753973614635,6.60923372,176.43,176.35,3.1]
[1753973614837,6.60923372,176.41,176.35,3.1]
[1753973615233,5.6698,176.39,176.35,3.1]
[1753973616041,5.67,176.38,176.35,3.1]
[1753973616843,5.67,176.38,176.33,5.6715]
[1753973617044,5.6709,176.36,176.31,3.1]
[1753973617244,6.60923372,176.39,176.32,5.6717]
[1753973617445,6.60923372,176.39,176.33,3.1]
[1753973618139,5.6708,176.36,176.33,3.1]
[1753973618340,5.6708,176.36,176.28,6.60923372]
[1753973618535,6.60923372,176.39,176.29,3.1]
[1753973618734,5.6709,176.36,176.31,3.1]
[1753973619143,6.60923372,176.39,176.32,3.1]
[1753973619646,6.60923372,176.37,176.32,3.1]
[1753973620146,6.60923372,176.37,176.33,3.1]
[1753973620555,5.6712,176.35,176.34,3.1]
[1753973621050,5.6708,176.36,176.34,3.1]
[1753973621250,105.92,176.42,176.3,6.60923372]
[1753973621450,6.60923372,176.4,176.31,3.1]
[1753973621752,6.60923372,176.4,176.34,3.1]
[1753973621952,112.52923372,176.42,176.34,3.1]
[1753973622259,6.60923372,176.4,176.35,3.1]
[1753973622447,6.60923372,176.4,176.31,3.1]
[1753973622643,5.6702,176.38,176.31,3.1]
[1753973622850,6.60923372,176.4,176.31,3.1]
[1753973623256,6.60923372,176.4,176.34,3.1]
[1753973624161,112.52923372,176.42,176.35,3.1]
[1753973624553,5.6695,176.4,176.35,8.7707]
[1753973624753,5.6695,176.4,176.36,3.1]
[1753973624954,112.52923372,176.42,176.36,3.1]
[1753973625155,6.60923372,176.38,176.31,3.1]
[1753973625460,6.60923372,176.36,176.32,3.1]
[1753973625663,5.6716,176.33,176.32,3.1]
[1753973626260,6.60923372,176.36,176.32,3.1]
[1753973626856,5.6715,176.34,176.31,3.1]
[1753973627051,5.6715,176.34,176.32,3.1]
[1753973627257,6.60923372,176.36,176.33,3.1]
[1753973627458,5.6713,176.34,176.33,3.1]
[1753973627858,5.6722,176.32,176.31,3.1]
[1753973629160,6.60923372,176.38,176.3,3.1]
[1753973629561,5.6712,176.35,176.31,5.6722]
[1753973629762,6.60923372,176.4,176.32,3.1]
[1753973630168,112.54923372,176.42,176.34,3.1]
[1753973630676,5.6705,176.37,176.34,3.1]
[1753973630967,5.6705,176.37,176.26,6.28778742]
[1753973630968,6.60923372,176.4,176.33,3.1]
[1753973631359,6.60923372,176.38,176.31,3.1]
[1753973632769,5.6712,176.35,176.31,5.6722]
[1753973632962,6.60923372,176.4,176.32,3.1]
[1753973633163,112.54923372,176.42,176.35,3.1]
[1753973633668,5.6699,176.39,176.35,3.1]
[1753973634571,105.94,176.42,176.36,6.60923372]
[1753973634763,105.94,176.42,176.37,3.1]
[1753973634963,5.6693,176.41,176.37,3.1]
[1753973635159,105.94,176.42,176.37,3.1]
[1753973635363,6.60923372,176.47,176.37,3.1]
[1753973635567,5.6688,176.42,176.39,3.1]
[1753973635866,105.94,176.48,176.39,3.1]
[1753973636070,4.00646423,176.47,176.39,3.1]
[1753973636269,112.54923372,176.48,176.39,3.1]
[1753973636861,105.94,176.48,176.4,6.60923372]
[1753973637067,6.60923372,176.5,176.41,3.1]
[1753973637267,4.00800929,176.49,176.41,3.1]
[1753973637565,6.60923372,176.5,176.42,3.1]
[1753973637771,4.00977189,176.49,176.42,3.1]
[1753973637970,5.6678,176.45,176.4,6.60923372]
[1753973638160,5.6678,176.45,176.41,3.1]
[1753973638359,5.6676,176.46,176.41,8.7688]
[1753973638564,6.60923372,176.5,176.42,3.2]
[1753973638768,4.01156014,176.49,176.42,3.2]
[1753973638965,6.60923372,176.5,176.42,3.2]
[1753973639167,4.01172455,176.49,176.42,3.2]
[1753973639362,6.60923372,176.5,176.42,3.2]
[1753973639573,4.01151696,176.49,176.42,3.2]
[1753973639773,6.60923372,176.5,176.42,3.2]
[1753973639973,4.01310515,176.49,176.42,3.2]
[1753973640171,6.60923372,176.5,176.42,3.2]
[1753973640374,4.01329118,176.49,176.42,3.2]
[1753973640575,6.60923372,176.5,176.42,3.2]
[1753973640774,4.01302492,176.49,176.42,3.2]
[1753973640974,5.6676,176.46,176.43,3.2]
[1753973641167,7.59581005,176.51,176.43,3.2]
[1753973641375,5.6677,176.46,176.43,3.2]
[1753973641873,707.14767077,176.52,176.45,3.2]
[1753973642175,707.14767077,176.52,176.47,3.2]
[1753973642370,225.59327077,176.52,176.47,3.2]
[1753973642570,219.92767077,176.52,176.51,8.8658]
[1753973642876,5.6641,176.57,176.51,3.2]
[1753973643078,105.9,176.6,176.54,12.27383372]
[1753973643269,105.9,176.6,176.57,3.2]
[1753973643470,5.6636,176.58,176.57,3.2]
[1753973643668,105.9,176.6,176.53,3.2]
[1753973644672,5.6636,176.58,176.53,3.2]
[1753973644871,105.9,176.6,176.53,3.2]
[1753973645265,5.6638,176.58,176.53,3.2]
[1753973645571,105.9,176.6,176.54,3.2]
[1753973646773,105.9,176.6,176.53,3.2]
[1753973647572,105.9,176.6,176.54,3.2]
[1753973647775,5.6634,176.59,176.54,3.2]
[1753973647970,218.01515732,176.63,176.56,3.2]
[1753973648166,5.6632,176.6,176.58,3.2]
[1753973648372,218.01515732,176.63,176.57,6.60923372]
[1753973648576,218.01515732,176.63,176.56,3.2]
[1753973648977,6.60923372,176.62,176.56,3.2]
[1753973649378,6.60923372,176.62,176.54,3.2]
[1753973649574,218.01515732,176.63,176.54,3.2]
[1753973649774,218.01515732,176.63,176.56,3.2]
[1753973650269,5.6638,176.58,176.56,3.2]
[1753973650474,218.01515732,176.63,176.56,3.2]
[1753973650979,5.6639,176.58,176.53,6.60923372]
[1753973651276,5.6639,176.58,176.57,3.2]
[1753973653577,5.6639,176.58,176.53,6.60923372]
[1753973653578,5.6649,176.54,176.53,3.2]
[1753973654372,5.6646,176.55,176.51,3.2]
[1753973654776,105.82,176.58,176.51,3.2]
[1753973654975,105.8,176.62,176.55,3.2]
[1753973655879,6.60923372,176.6,176.55,3.2]
[1753973657078,5.6642,176.56,176.55,3.2]
[1753973657281,6.60923372,176.6,176.51,3.2]
[1753973657582,6.60923372,176.58,176.51,3.2]
[1753973657784,6.60923372,176.58,176.52,3.2]
[1753973657984,105.8,176.57,176.52,3.2]
[1753973658185,6.60923372,176.56,176.52,3.2]
[1753973658379,6.60923372,176.54,176.46,6.60923372]
[1753973658584,6.60923372,176.54,176.5,3.2]
[1753973658786,6.60923372,176.54,176.51,3.2]
[1753973659185,6.60923372,176.54,176.45,3.2]
[1753973659376,5.6661,176.51,176.46,5.6672]
[1753973659577,6.60923372,176.54,176.47,3.2]
[1753973660683,5.666,176.51,176.47,3.2]
[1753973660883,6.60923372,176.54,176.47,3.2]
[1753973661076,6.60923372,176.52,176.47,3.2]
[1753973661281,5.6658,176.51,176.49,3.2]
[1753973661681,5.6658,176.51,176.5,3.2]
[1753973661882,105.8,176.57,176.5,3.2]
[1753973661883,6.60923372,176.56,176.5,3.2]
[1753973662181,112.40923372,176.57,176.5,3.2]
[1753973663577,6.60923372,176.59,176.5,3.2]
[1753973663785,105.8,176.58,176.51,3.2]
[1753973664282,105.8,176.58,176.53,5.665]
[1753973664283,111.4638,176.58,176.53,5.665]
[1753973664488,105.8,176.58,176.51,3.2]
[1753973665587,5.6643,176.56,176.52,3.2]
[1753973666783,6.60923372,176.57,176.51,3.2]
[1753973666977,6.60923372,176.55,176.46,6.60923372]
[1753973667184,5.6661,176.51,176.46,5.6672]
[1753973667485,6.60923372,176.53,176.5,3.2]
[1753973667486,112.40923372,176.53,176.5,3.2]
[1753973667785,112.40923372,176.53,176.48,3.2]
[1753973668884,5.666,176.51,176.47,3.05]
[1753973669083,5.666,176.51,176.41,531.18099948]
[1753973669084,6.60923372,176.51,176.43,3.05]
[1753973669285,5.6666,176.49,176.43,3.05]
[1753973669480,6.60923372,176.53,176.43,3.05]
[1753973669680,105.8,176.52,176.43,3.05]
[1753973669882,105.8,176.52,176.45,3.05]
[1753973669883,5.6665,176.5,176.45,3.05]
[1753973670284,105.8,176.52,176.45,3.05]
[1753973670691,111.4657,176.52,176.46,5.6674]
[1753973670884,111.4657,176.52,176.47,3.05]
[1753973671084,105.8,176.52,176.44,6.60923372]
[1753973671284,6.60923372,176.51,176.46,3.05]
[1753973671488,6.60923372,176.51,176.47,3.05]
[1753973672292,5.6664,176.5,176.44,3.05]
[1753973672586,5.6664,176.5,176.45,3.05]
[1753973672998,5.6665,176.49,176.45,3.05]
[1753973673389,5.6664,176.5,176.45,3.05]
[1753973673690,105.8,176.52,176.45,3.05]
[1753973673993,5.6667,176.49,176.45,3.05]
[1753973674191,6.60923372,176.53,176.45,3.05]
[1753973674495,5.6653,176.53,176.48,3.05]
[1753973674884,105.82,176.54,176.48,9.65923372]
[1753973675092,105.82,176.54,176.49,3.05]
[1753973675789,380.8,176.61,176.53,6.60923372]
[1753973676093,219.0010768,176.63,176.56,3.05]
[1753973676289,324.8210768,176.63,176.57,6.60923372]
[1753973676488,323.83515732,176.63,176.58,3.05]
[1753973677189,5.6627,176.61,176.58,3.05]
[1753973677397,323.83515732,176.63,176.58,3.05]
[1753973677797,5.6625,176.62,176.58,3.05]
[1753973677993,323.83515732,176.63,176.58,3.05]
[1753973678496,329.49735732,176.63,176.58,3.05]
[1753973678697,329.49735732,176.63,176.59,3.05]
[1753973679290,323.83515732,176.63,176.59,3.05]
[1753973679797,5.6624,176.62,176.59,3.05]
[1753973680090,323.83515732,176.63,176.58,6.60923372]
[1753973680286,323.83515732,176.63,176.61,3.05]
[1753973680486,5.6623,176.62,176.61,3.05]
[1753973681191,5.6628,176.61,176.6,3.05]
[1753973682389,5.6624,176.62,176.6,3.05]
[1753973682991,323.83515732,176.63,176.58,3.05]
[1753973682992,5.6626,176.61,176.58,3.05]
[1753973683192,5.6626,176.61,176.59,3.05]
[1753973683496,5.6624,176.62,176.57,3.05]
[1753973683894,5.6624,176.62,176.56,6.60923372]
[1753973683895,5.6623,176.62,176.59,3.05]
[1753973684101,5.6623,176.62,176.57,3.05]
[1753973684596,218.01515732,176.63,176.59,3.05]
[1753973685195,105.78,176.64,176.59,3.05]
[1753973685495,105.78,176.64,176.46,11.3345]
[1753973685496,105.78,176.64,176.61,3.05]
[1753973686488,105.78,176.64,176.61,8.7124]
[1753973686695,105.78,176.64,176.6,6.60923372]
[1753973686696,105.78,176.64,176.62,3.05]
[1753973686995,105.76,176.67,176.61,3.05]
[1753973687194,105.76,176.66,176.59,3.05]
[1753973687699,105.76,176.66,176.61,3.05]
[1753973688993,105.76,176.66,176.59,3.05]
[1753973689396,5.6624,176.62,176.59,3.05]
[1753973689998,5.6624,176.62,176.58,3.05]
[1753973690193,5.6621,176.63,176.58,3.05]
[1753973690701,5.6621,176.63,176.59,3.05]
[1753973692105,5.6623,176.62,176.57,12.27303372]
[1753973692301,5.6623,176.62,176.6,3.05]
[1753973692605,5.6623,176.62,176.61,3.05]
[1753973693303,5.6631,176.6,176.55,4.04150383]
[1753973693501,4.04150383,176.63,176.56,3.05]
[1753973694307,5.6629,176.61,176.56,5.664]
[1753973694507,5.6629,176.61,176.57,3.05]
[1753973695105,5.663,176.6,176.57,3.05]
[1753973695304,4.04150383,176.63,176.57,3.05]
[1753973696106,5.6627,176.61,176.57,3.05]
[1753973696500,4.04150383,176.65,176.57,4.04150383]
[1753973696698,4.04150383,176.65,176.58,3.05]
[1753973697410,5.6622,176.63,176.59,3.05]
[1753973698715,4.04150383,176.63,176.56,3.09]
[1753973699214,5.6631,176.6,176.56,3.09]
[1753973699512,4.04150383,176.63,176.56,3.09]
[1753973699911,4.04150383,176.65,176.57,4.04150383]
[1753973700105,4.04150383,176.65,176.58,3.09]
[1753973700303,5.6633,176.59,176.58,3.09]
[1753973700709,4.04150383,176.61,176.58,3.09]
[1753973700909,4.04150383,176.61,176.59,3.09]
[1753973700910,5.6631,176.6,176.59,3.09]
[1753973701309,5.6631,176.6,176.54,4.04150383]
[1753973701310,5.6646,176.55,176.48,3.09]
[1753973701625,4.04150383,176.57,176.5,3.09]
[1753973701807,4.04150383,176.57,176.48,4.04150383]
[1753973702008,4.04150383,176.57,176.5,4.04150383]
[1753973702222,4.04150383,176.57,176.51,3.09]
[1753973703211,4.04150383,176.55,176.51,3.09]
[1753973703802,15.98663498,176.65,176.52,3.09]
[1753973704100,4.04150383,176.59,176.52,3.09]
[1753973704507,4.04150383,176.55,176.47,3.09]
[1753973704714,4.04150383,176.53,176.47,3.09]
[1753973706811,4.04150383,176.49,176.43,3.09]
[1753973707113,5.6671,176.48,176.43,3.09]
[1753973708510,105.74,176.56,176.41,3.09]
[1753973708511,4.04150383,176.47,176.41,3.09]
[1753973708907,4.04150383,176.45,176.38,152.24947693]
[1753973709114,4.04150383,176.49,176.41,3.09]
[1753973709409,5.6674,176.47,176.41,3.09]
[1753973709808,4.04150383,176.49,176.41,3.09]
[1753973710009,4.04150383,176.47,176.39,4.04150383]
[1753973710208,4.04150383,176.47,176.4,3.09]
[1753973710606,9.70870383,176.47,176.42,3.09]
[1753973710812,9.70870383,176.47,176.41,5.6688]
[1753973711010,4.04150383,176.47,176.4,3.09]
[1753973711412,5.668,176.45,176.4,3.09]
[1753973711610,4.04150383,176.49,176.41,4.04150383]
[1753973711813,4.04150383,176.49,176.42,3.09]
[1753973712816,4.04150383,176.45,176.4,3.09]
[1753973713722,105.78,176.52,176.41,3.09]
[1753973713723,4.04150383,176.43,176.41,3.09]
[1753973714016,4.04150383,176.43,176.36,3.09]
[1753973714210,4.04150383,176.43,176.33,387.01706308]
[1753973714211,4.04150383,176.4,176.33,380.74]
[1753973714416,4.04150383,176.4,176.32,30.34676705]
[1753973714417,4.04150383,176.4,176.38,3.09]
[1753973714603,4.04150383,176.4,176.39,3.09]
[1753973715010,4.04150383,176.4,176.32,26.30526322]
[1753973715011,4.04150383,176.4,176.33,4.04150383]
[1753973715210,4.04150383,176.4,176.35,5.6707]
[1753973715510,4.04150383,176.4,176.36,3.09]
[1753973715913,4.04150383,176.49,176.37,3.09]
[1753973716113,4.04150383,176.42,176.37,3.09]
[1753973716422,5.6689,176.42,176.38,3.09]
[1753973716621,11.3317,176.52,176.38,3.09]
[1753973716919,105.8,176.51,176.38,3.09]
[1753973717121,4.04150383,176.46,176.38,3.09]
[1753973717318,5.6682,176.44,176.39,5.6695]
[1753973717520,4.04150383,176.44,176.38,3.09]
[1753973717717,4.04150383,176.42,176.33,3.09]
[1753973717918,4.04150383,176.49,176.34,3.09]
[1753973718117,4.04150383,176.41,176.34,3.09]
[1753973718618,4.04150383,176.43,176.36,3.09]
[1753973719215,4.04150383,176.43,176.37,3.09]
[1753973719417,4.04150383,176.49,176.37,3.09]
[1753973719619,5.6686,176.43,176.37,3.09]
[1753973719823,4.04150383,176.46,176.38,3.09]
[1753973720119,4.04150383,176.46,176.38,5.6699]
[1753973720120,5.6684,176.44,176.38,5.6699]
[1753973720322,5.6684,176.44,176.38,3.09]
[1753973720512,4.04150383,176.46,176.38,3.09]
[1753973720717,5.6682,176.44,176.38,8.7598]
[1753973720922,5.6682,176.44,176.39,3.09]
[1753973721125,4.04150383,176.46,176.39,3.09]
[1753973721415,5.6684,176.43,176.39,3.09]
[1753973721615,4.04150383,176.46,176.39,8.7596]
[1753973721822,4.04150383,176.46,176.39,3.09]
[1753973722022,4.04150383,176.44,176.39,3.09]
[1753973722222,4.04150383,176.44,176.4,3.09]
[1753973722823,5.6685,176.43,176.38,3.09]
[1753973723320,5.6688,176.42,176.38,3.09]
[1753973723526,4.04150383,176.44,176.41,3.09]
[1753973724019,4.04150383,176.44,176.37,4.04150383]
[1753973724225,4.04150383,176.44,176.42,3.09]
[1753973724924,109.84150383,176.49,176.39,3.09]
[1753973725316,5.668,176.45,176.39,4.04150383]
[1753973725525,5.668,176.45,176.4,3.09]
[1753973725721,105.82,176.5,176.41,4.04150383]
[1753973725920,5.6673,176.47,176.43,3.09]
[1753973726621,4.04150383,176.49,176.43,3.09]
[1753973727121,5.6674,176.47,176.43,3.09]
[1753973727332,4.04150383,176.45,176.38,3.09]
[1753973727520,4.04150383,176.49,176.26,117.1475]
[1753973727521,4.04150383,176.43,176.36,3.09]
[1753973727719,4.04150383,176.41,176.36,3.09]
[1753973728823,6.60305592,176.43,176.36,3.09]
[1753973729019,6.60305592,176.45,176.36,3.09]
[1753973729325,6.60305592,176.43,176.36,3.09]
[1753973731629,5.6682,176.44,176.4,3.17]
[1753973732422,5.6682,176.44,176.4,8.8393]
[1753973732622,5.6682,176.44,176.41,3.17]
[1753973732823,5.6679,176.45,176.41,3.17]
[1753973733024,6.60305592,176.52,176.44,3.17]
[1753973733519,5.6673,176.47,176.44,3.17]
[1753973733917,6.60305592,176.52,176.44,3.17]
[1753973734118,11.3304,176.54,176.44,3.17]
[1753973734119,6.60305592,176.5,176.44,3.17]
[1753973734521,5.6678,176.45,176.44,3.17]
[1753973735019,5.6684,176.43,176.42,3.17]
[1753973735222,6.60305592,176.48,176.42,3.17]
[1753973735524,5.668,176.45,176.42,3.17]
[1753973736322,5.6681,176.44,176.42,3.17]
[1753973736828,5.6677,176.46,176.42,3.17]
[1753973737524,5.6679,176.45,176.43,3.17]
[1753973737920,11.3304,176.54,176.44,5.6679]
[1753973738227,17.93345592,176.54,176.45,3.17]
[1753973738726,5.6674,176.47,176.45,3.17]
[1753973738930,6.60305592,176.52,176.44,3.17]
[1753973739144,6.60305592,176.52,176.45,3.17]
[1753973739145,5.6675,176.46,176.45,3.17]
[1753973739430,6.60305592,176.46,176.4,3.17]
[1753973739615,5.6691,176.41,176.4,3.17]
[1753973740128,6.60305592,176.46,176.4,3.17]
[1753973741227,5.669,176.42,176.37,5.6701]
[1753973741525,5.669,176.42,176.41,3.17]
[1753973742224,6.60305592,176.42,176.38,3.17]
[1753973742631,5.6697,176.39,176.38,3.17]
[1753973742821,6.60305592,176.44,176.38,3.17]
[1753973743022,5.6689,176.42,176.38,3.17]
[1753973743217,11.3344,176.47,176.38,3.17]
[1753973743218,6.60305592,176.45,176.38,3.17]
[1753973743418,6.60305592,176.43,176.36,3.17]
[1753973744228,5.6698,176.39,176.35,3.17]
[1753973744419,6.60305592,176.43,176.35,3.17]
[1753973744622,4.01453334,176.42,176.35,3.17]
[1753973744831,6.60305592,176.43,176.35,3.17]
[1753973745029,4.01434396,176.42,176.35,3.17]
[1753973745229,6.60305592,176.43,176.35,3.17]
[1753973745527,4.01434396,176.42,176.35,3.17]
[1753973745727,6.60305592,176.43,176.35,3.17]
[1753973745928,5.6692,176.41,176.37,3.17]
[1753973746230,6.60305592,176.43,176.37,3.17]
[1753973746626,5.6688,176.42,176.37,8.8401]
[1753973746833,6.60305592,176.45,176.38,3.17]
[1753973747036,4.01234145,176.44,176.38,3.17]
[1753973747228,5.6685,176.43,176.39,3.17]
[1753973747425,219.36392764,176.5,176.41,3.17]
[1753973747631,4.01541413,176.49,176.41,3.17]
[1753973747935,4.01523101,176.48,176.41,3.17]
[1753973748133,4.01523101,176.47,176.41,3.17]
[1753973748338,5.6677,176.46,176.41,3.17]
[1753973748631,219.36392764,176.5,176.41,3.17]
[1753973748934,5.6676,176.46,176.42,3.17]
[1753973749230,219.36392764,176.5,176.42,3.17]
[1753973749430,4.01898961,176.49,176.42,3.17]
[1753973749633,4.02141469,176.48,176.42,3.17]
[1753973749831,219.36392764,176.5,176.42,5.6687]
[1753973750029,4.02142911,176.49,176.43,3.17]
[1753973750229,10.62448503,176.48,176.4,3.17]
[1753973750431,5.668,176.45,176.4,8.8393]
[1753973750739,5.668,176.45,176.41,3.17]
[1753973751037,5.6681,176.44,176.41,3.17]
[1753973751335,6.60305592,176.48,176.42,3.17]
[1753973751538,6.60305592,176.46,176.4,3.17]
[1753973751736,5.6684,176.43,176.41,3.17]
[1753973751934,6.60305592,176.46,176.39,3.17]
[1753973752135,4.02412145,176.45,176.39,3.17]
[1753973752335,10.62717737,176.44,176.38,3.17]
[1753973752634,4.02531579,176.43,176.33,6.60305592]
[1753973752942,5.669,176.42,176.4,3.17]
[1753973753134,6.60305592,176.44,176.4,3.17]
[1753973753333,4.02570991,176.43,176.4,3.17]
[1753973753534,6.60305592,176.44,176.4,3.17]
[1753973753730,4.02666628,176.43,176.4,3.17]
[1753973753939,6.60305592,176.44,176.4,3.17]
[1753973754139,5.669,176.41,176.4,3.17]
[1753973755332,5.6689,176.42,176.41,3.17]
[1753973755735,105.82,176.45,176.41,3.17]
[1753973756239,5.6669,176.48,176.43,5.6682]
[1753973756435,212.76087172,176.5,176.44,3.17]
[1753973756634,4.02616283,176.49,176.44,3.17]
[1753973756836,5.6669,176.48,176.44,3.17]
[1753973757238,212.76087172,176.5,176.44,3.17]
[1753973757434,4.02578464,176.49,176.44,3.17]
[1753973757631,212.76087172,176.5,176.44,3.17]
[1753973757835,5.667,176.48,176.44,8.838]
[1753973758031,212.76087172,176.5,176.41,6.60305592]
[1753973758238,4.0266904,176.49,176.42,3.28]
[1753973758541,219.36392764,176.5,176.41,6.60305592]
[1753973758836,219.36392764,176.5,176.42,3.28]
[1753973759140,5.6671,176.47,176.44,5.668]
[1753973759441,212.76087172,176.5,176.45,3.28]
[1753973759640,5.6671,176.47,176.45,3.28]
[1753973760234,5.6671,176.47,176.46,3.28]
[1753973760436,5.6669,176.48,176.44,5.668]
[1753973760737,5.6669,176.48,176.47,3.28]
[1753973761345,212.76087172,176.5,176.47,3.28]
[1753973761546,212.76087172,176.5,176.44,3.28]
[1753973761841,218.42717172,176.5,176.46,3.28]
[1753973762037,212.76087172,176.5,176.44,6.60305592]
[1753973762234,212.76087172,176.5,176.46,3.28]
[1753973762235,5.667,176.48,176.46,3.28]
[1753973762439,212.76087172,176.5,176.47,3.28]
[1753973762635,212.76087172,176.5,176.44,3.28]
[1753973762836,5.6672,176.47,176.44,3.28]
[1753973763036,212.76087172,176.5,176.44,8.948]
[1753973763339,5.667,176.48,176.45,3.28]
[1753973763739,5.667,176.48,176.46,3.28]
[1753973763942,212.76087172,176.5,176.46,3.28]
[1753973764140,212.76087172,176.5,176.45,5.6675]
[1753973764338,212.76087172,176.5,176.46,3.28]
[1753973764544,5.6667,176.49,176.46,3.28]
[1753973764841,212.76087172,176.5,176.46,5.6674]
[1753973765039,212.76087172,176.5,176.45,3.28]
[1753973765232,212.76087172,176.5,176.46,5.6674]
[1753973765435,212.76087172,176.5,176.45,3.28]